[Event "XVII MetLife Najdorf Open 2017"]
[Site "Warsaw"]
[Date "2017.07.17"]
[Round "9"]
[White "Hacker, Jonas"]
[Black "Lewtak, Damian"]
[Result "1-0"]
[ECO "B60"]
[WhiteElo "2297"]
[BlackElo "2341"]
[Annotator "NA"]
[PlyCount "57"]
[EventDate "2017.??.??"]
[EventType "swiss"]
[EventCountry "POL"]
[SourceTitle "playchess.com"]
[Source "ChessBase"]
[SourceQuality "1"]
[TimeControl "40/5400+30:1800+30"]

1. e4 {[%emt 0:00:00]} c5 {[%emt 0:00:07]} 2. Nf3 {[%emt 0:00:00]} d6 {[%emt 0:00:05]} 3. d4 {[%emt 0:00:00]} cxd4 {[%emt 0:00:05]} 4. Nxd4 {[%emt 0:00:00]} Nf6 {[%emt 0:00:03]} 5. Nc3 {[%emt 0:00:08]} Nc6 {[%emt 0:00:06]} 6. Bg5 {[%emt 0:00:08]} h6 {[%emt 0:00:30]} 7. Bxf6 {[%emt 0:02:36]} gxf6 {[%emt 0:00:04]} 8. Be2 {[%emt 0:11:07] B60: Sicilian: Richter-Rauzer: Unusual Black 6th moves and 6...Bd7 without 7 Qd2} Nxd4 $146 {[%emt 0:03:29]} ({Predecessor:} 8... h5 9. h4 a6 10. g3 Nxd4 11. Qxd4 e6 12. Na4 Qa5+ 13. c3 e5 14. Qb4 Qxb4 15. cxb4 Be6 16. Nb6 Rb8 17. O-O Bg7 18. Rfd1 {1-0 (18) Petrik,T (2508)-Cicak,S (2570) Germany 2009}) 9. Qxd4 {[%emt 0:00:04]} h5 {[%emt 0:00:28]} 10. Bb5+ {[%emt 0:06:44]} Bd7 {[%emt 0:00:12]} 11. Bxd7+ {[%emt 0:05:33]} Qxd7 {[%emt 0:00:06]} 12. O-O-O {[%emt 0:03:14]} h4 {[%emt 0:06:46]} 13. Kb1 {[%emt 0:02:02]} Bg7 {[%emt 0:00:41]} 14. Nd5 {[%emt 0:05:28]} Kf8 {[%emt 0:00:11]} 15. Qd3 {[%emt 0:01:04]} e6 {[%emt 0:02:05]} 16. Nc3 {[%emt 0:06:00]} Ke7 {[%emt 0:00:49]} 17. Nb5 {[%emt 0:07:26]} Rhd8 {[%emt 0:00:16]} 18. f4 {[%emt 0:02:25]} Qc6 {[%emt 0:03:24]} 19. Nd4 {[%emt 0:03:26]} Qc5 {[%emt 0:06:24]} 20. f5 {[%emt 0:04:27]} Rac8 {[%emt 0:15:01]} 21. Rhe1 {[%emt 0:11:47]} Qe5 {[%emt 0:10:45]} 22. fxe6 {[%emt 0:06:34]} fxe6 $1 $11 {[%emt 0:00:02]} 23. Qh3 {[%emt 0:02:39]} Rc4 {[%emt 0:02:34]} 24. Qd3 {[%emt 0:03:30]} Rc5 $18 {[%emt 0:03:03]} 25. Nf5+ {[%emt 0:02:20]} Kf7 {[%emt 0:03:30]} 26. Nxh4 {[%emt 0:02:53]} Qxh2 {[%emt 0:11:58]} 27. g3 {[%emt 0:01:14]} Rg5 {[%emt 0:00:30]} 28. Nf3 {[%emt 0:00:16]} Qxg3 {[%emt 0:00:07]} 29. Rg1 {[%emt 0:00:36]} 1-0

[Event "XVII MetLife Najdorf Open 2017"]
[Site "Warsaw"]
[Date "2017.07.17"]
[Round "9"]
[White "Rahul, Srivatshav P"]
[Black "Fieberg, Samuel"]
[Result "0-1"]
[ECO "D00"]
[WhiteElo "2295"]
[BlackElo "2169"]
[Annotator "NA"]
[PlyCount "120"]
[EventDate "2017.??.??"]
[EventType "swiss"]
[EventCountry "POL"]
[SourceTitle "playchess.com"]
[Source "ChessBase"]
[SourceQuality "1"]
[TimeControl "40/5400+30:1800+30"]

1. d4 {[%emt 0:00:00]} d5 {[%emt 0:00:05]} 2. Bf4 {[%emt 0:00:00]} c5 {[%emt 0:00:05]} 3. e3 {[%emt 0:00:04]} Nc6 {[%emt 0:00:05]} 4. c3 {[%emt 0:00:10]} Nf6 {[%emt 0:00:07]} 5. Nd2 {[%emt 0:00:08] D00: 1 d4 d5: Unusual lines} Bf5 {[%emt 0:00:04]} (5... e6 6. Ngf3 Bd6 7. Bg3 O-O 8. Bb5 a6 9. Bxc6 bxc6 10. Qa4 Rb8 11. Qa3 Bxg3 12. hxg3 cxd4 13. cxd4 a5 14. O-O Qb6 15. b3 Ba6 {1-0 (24) Carlsen,M (2840)-Anand,V (2779) Doha 2016}) 6. Qb3 {[%emt 0:00:12]} Qd7 {[%emt 0:00:06]} 7. Ngf3 {[%emt 0:00:31]} c4 {[%emt 0:00:11]} 8. Qd1 {[%emt 0:04:00]} e6 {[%emt 0:03:04]} 9. Be2 {[%emt 0:03:10]} Be7 {[%emt 0:00:32]} 10. Nh4 {[%emt 0:02:00]} O-O {[%emt 0:04:56]} 11. Nxf5 {[%emt 0:02:06]} exf5 {[%emt 0:00:04]} 12. b3 $146 {[%emt 0:05:30]} ({Predecessor:} 12. O-O Bd6 {1-0 (41) Karlik,V (2268)-Kopal,J (2253) Liberec 2011}) 12... b5 {[%emt 0:00:44]} 13. bxc4 {[%emt 0:02:38]} bxc4 {[%emt 0:00:36]} 14. Qc2 {[%emt 0:00:22]} Ne8 {[%emt 0:08:21]} 15. Bf3 {[%emt 0:05:34]} Nf6 {[%emt 0:03:43]} 16. O-O {[%emt 0:01:12]} Ne4 {[%emt 0:00:18]} 17. Rab1 {[%emt 0:05:38]} Bd6 {[%emt 0:00:33]} 18. Bxd6 {[%emt 0:01:00]} Qxd6 {[%emt 0:00:06]} 19. g3 {[%emt 0:02:24]} Qa3 {[%emt 0:01:51]} 20. Rfc1 {[%emt 0:05:37]} Rfb8 {[%emt 0:02:44]} 21. Bg2 {[%emt 0:00:49]} Rb6 {[%emt 0:03:30]} 22. f3 {[%emt 0:06:20]} Nd6 {[%emt 0:17:03]} 23. e4 {[%emt 0:04:57]} Ne7 {[%emt 0:02:30]} 24. Re1 {[%emt 0:08:19]} Rab8 {[%emt 0:03:01]} 25. exf5 {[%emt 0:00:52]} Nexf5 {[%emt 0:02:32]} (25... Ndxf5 $11 26. Rxb6 Rxb6) 26. f4 {[%emt 0:03:21]} g6 {[%emt 0:06:09]} 27. Bxd5 {[%emt 0:01:38]} Rb2 {[%emt 0:00:11]} 28. Qc1 {[%emt 0:01:30]} Rxb1 {[%emt 0:02:53]} 29. Qxa3 {[%emt 0:00:32]} Rxe1+ {[%emt 0:00:05]} 30. Kf2 {[%emt 0:00:22]} Rbe8 $17 {[%emt 0:00:13]} 31. Nxc4 {[%emt 0:07:00]} R1e2+ {[%emt 0:03:10]} 32. Kf3 {[%emt 0:00:18]} Nxc4 {[%emt 0:00:13]} 33. Qxa7 {[%emt 0:01:07]} Nh6 {[%emt 0:01:42]} 34. f5 {[%emt 0:01:08]} g5 {[%emt 0:00:22]} 35. Be6 {[%emt 0:01:00]} Re3+ {[%emt 0:02:07]} 36. Kg2 {[%emt 0:00:24]} fxe6 {[%emt 0:00:15]} 37. Qc5 {[%emt 0:02:12]} Nd2 {[%emt 0:01:04]} 38. fxe6 {[%emt 0:02:30]} Re2+ {[%emt 0:03:54]} 39. Kg1 {[%emt 0:00:18]} Nf3+ {[%emt 0:00:47]} 40. Kf1 {[%emt 0:00:00]} R8xe6 {[%emt 0:00:27]} 41. Qc8+ {[%emt 0:01:44]} Kg7 {[%emt 0:00:10]} 42. Qb7+ {[%emt 0:00:14]} Kg6 {[%emt 0:02:47]} 43. Qxf3 {[%emt 0:00:15]} R2e3 {[%emt 0:00:27]} 44. Qd1 {[%emt 0:02:10]} Rf6+ {[%emt 0:03:25]} 45. Kg1 {[%emt 0:00:30]} Rxc3 {[%emt 0:04:17]} 46. Qb1+ {[%emt 0:00:22]} Kg7 {[%emt 0:00:19]} 47. d5 {[%emt 0:01:28]} Nf7 {[%emt 0:01:34]} 48. a4 {[%emt 0:01:45]} Rc7 {[%emt 0:00:57]} 49. Qb2 {[%emt 0:01:12]} Rd7 {[%emt 0:00:26]} 50. Qd4 {[%emt 0:00:18]} Nh6 {[%emt 0:03:19]} 51. Qe5 {[%emt 0:01:11]} Nf7 {[%emt 0:00:36]} 52. Qd4 {[%emt 0:00:01]} h5 {[%emt 0:02:45]} 53. h3 {[%emt 0:02:28]} Kg6 {[%emt 0:00:29]} 54. h4 {[%emt 0:03:22]} g4 {[%emt 0:03:31]} 55. a5 {[%emt 0:03:12]} Rdd6 {[%emt 0:03:08]} 56. Qd3+ {[%emt 0:01:53]} Rf5 {[%emt 0:05:41]} 57. a6 {[%emt 0:01:14]} Rdxd5 {[%emt 0:00:12]} 58. Qe3 {[%emt 0:00:10]} Rd1+ {[%emt 0:03:46]} 59. Kg2 {[%emt 0:00:08]} Rfd5 {[%emt 0:00:29]} 60. Qb6+ {[%emt 0:01:59]} Rd6 {[%emt 0:00:16]} 0-1

[Event "XVII MetLife Najdorf Open 2017"]
[Site "Warsaw"]
[Date "2017.07.17"]
[Round "9"]
[White "Villegas, Pierre"]
[Black "Kowalski, Igor"]
[Result "0-1"]
[ECO "E05"]
[WhiteElo "2295"]
[BlackElo "2226"]
[Annotator "NA"]
[PlyCount "152"]
[EventDate "2017.??.??"]
[EventType "swiss"]
[EventCountry "POL"]
[SourceTitle "playchess.com"]
[Source "ChessBase"]
[SourceQuality "1"]
[TimeControl "40/5400+30:1800+30"]

1. c4 {[%emt 0:00:00]} Nf6 {[%emt 0:00:03]} 2. g3 {[%emt 0:00:00]} e6 {[%emt 0:00:05]} 3. Bg2 {[%emt 0:00:00]} d5 {[%emt 0:00:04]} 4. Nf3 {[%emt 0:00:03]} Be7 {[%emt 0:00:04]} 5. O-O {[%emt 0:00:29]} O-O {[%emt 0:00:05]} 6. d4 {[%emt 0:00:21]} dxc4 {[%emt 0:00:07]} 7. Ne5 {[%emt 0:02:11]} Nc6 {[%emt 0:00:40]} 8. Nxc6 {[%emt 0:00:10]} bxc6 {[%emt 0:00:03]} 9. Na3 {[%emt 0:00:12]} Bxa3 {[%emt 0:03:35]} 10. bxa3 {[%emt 0:00:08]} Ba6 {[%emt 0:06:10]} 11. a4 {[%emt 0:19:59] E05: Open Catalan: 5 Nf3 Be7} Qd6 {[%emt 0:01:33]} 12. Qd2 {[%emt 0:02:49]} Rab8 {[%emt 0:02:01]} 13. Qa5 {[%emt 0:02:38]} Rb6 {[%emt 0:00:10]} 14. e4 {[%emt 0:04:57]} (14. Qc3 Rd8 15. Ba3 Qxd4 16. Qxd4 Rxd4 17. Bc5 Rd5 18. Bxd5 cxd5 19. Bxb6 axb6 {½-½ (33) Wojtaszek,R (2746)-Jakovenko,D (2714) Germany 2016}) 14... Nd7 $146 {[%emt 0:06:04]} ({Predecessor:} 14... Qb4 15. Qxb4 Rxb4 16. Ba3 Rxa4 17. Bxf8 Kxf8 18. Rfc1 Ra3 {1-0 (53) Malakhatko,V (2487)-Cunningham,R (2255) Bregenz 2017}) 15. e5 {[%emt 0:12:36]} Qe7 {[%emt 0:01:17]} 16. Qc3 {[%emt 0:00:07]} c5 {[%emt 0:03:24]} 17. Rd1 {[%emt 0:00:40]} Rfb8 {[%emt 0:13:02]} 18. Be3 {[%emt 0:15:13]} Rb4 {[%emt 0:06:16]} 19. a5 {[%emt 0:04:04]} f6 {[%emt 0:02:05]} 20. exf6 {[%emt 0:04:46]} Qxf6 {[%emt 0:00:19]} 21. Qe1 {[%emt 0:02:37]} Qf5 {[%emt 0:15:32]} 22. Bd2 {[%emt 0:02:18]} Ra4 {[%emt 0:06:07]} 23. Be4 {[%emt 0:04:50]} Qh3 {[%emt 0:02:33]} 24. Bg2 {[%emt 0:00:06]} Qf5 {[%emt 0:00:08]} 25. Be4 {[%emt 0:00:21]} Qh3 {[%emt 0:00:39]} 26. Bc6 {[%emt 0:05:22]} Bb5 {[%emt 0:11:22]} 27. Bxb5 {[%emt 0:01:38]} Rxb5 {[%emt 0:00:53]} 28. d5 {[%emt 0:00:00]} e5 {[%emt 0:02:31]} 29. Qe4 {[%emt 0:01:37]} Nf6 {[%emt 0:04:07]} 30. Qe2 {[%emt 0:00:13]} Rb8 {[%emt 0:05:10]} 31. Bc3 {[%emt 0:02:24]} Ra3 {[%emt 0:04:19]} 32. Rac1 {[%emt 0:00:39]} Rf8 {[%emt 0:02:57]} 33. f3 {[%emt 0:01:33]} e4 {[%emt 0:01:04]} 34. Rf1 {[%emt 0:01:21]} exf3 {[%emt 0:00:42]} 35. Rxf3 {[%emt 0:03:00]} Re8 {[%emt 0:00:41]} 36. Qb2 {[%emt 0:00:32]} Ng4 {[%emt 0:00:11]} 37. Qd2 {[%emt 0:01:50]} h6 {[%emt 0:01:09]} 38. Rc2 {[%emt 0:02:25]} Ne5 {[%emt 0:01:30]} 39. Re3 {[%emt 0:01:44]} Rf8 {[%emt 0:00:35]} 40. Qg2 {[%emt 0:00:00]} Qg4 {[%emt 0:00:35]} 41. Qe2 {[%emt 0:05:50]} Nf3+ {[%emt 0:08:06]} 42. Kg2 {[%emt 0:03:05]} Nh4+ {[%emt 0:13:20]} 43. Kg1 {[%emt 0:00:10]} Qg5 {[%emt 0:00:51]} 44. Re7 {[%emt 0:07:40]} Nf5 {[%emt 0:07:33]} 45. Rxc7 {[%emt 0:01:56]} Rxc3 {[%emt 0:02:21]} 46. Rxc3 {[%emt 0:00:43]} Nd4 {[%emt 0:00:08]} 47. Qe7 {[%emt 0:01:15]} Qg4 {[%emt 0:00:25]} 48. Kg2 {[%emt 0:03:09]} Ne2 {[%emt 0:00:54]} 49. Qxg7+ {[%emt 0:05:56]} Qxg7 {[%emt 0:00:05]} 50. Rxg7+ {[%emt 0:00:03]} Kxg7 {[%emt 0:00:05]} 51. Rxc4 {[%emt 0:00:09]} Rc8 {[%emt 0:01:06]} 52. d6 {[%emt 0:00:17]} Nd4 {[%emt 0:00:15]} 53. d7 {[%emt 0:00:30]} Rd8 {[%emt 0:00:04]} 54. Rxc5 {[%emt 0:00:03]} Rxd7 {[%emt 0:00:03]} 55. g4 {[%emt 0:00:38]} Ne6 {[%emt 0:01:50]} 56. Rc6 {[%emt 0:00:18]} Kf6 {[%emt 0:00:09]} 57. Ra6 {[%emt 0:00:12]} Ke5 {[%emt 0:00:14]} 58. h4 {[%emt 0:01:29]} Kd5 {[%emt 0:00:59]} 59. Kg3 {[%emt 0:00:33]} Rc7 {[%emt 0:00:41]} 60. Kf2 {[%emt 0:03:21]} Rc2+ $17 {[%emt 0:00:30]} (60... Rf7+ $142 61. Kg2 Rh7) 61. Kg3 {[%emt 0:00:18]} (61. Ke1 $15) 61... Rc3+ {[%emt 0:00:16]} 62. Kh2 {[%emt 0:00:40] [#]} (62. Kg2 $17) 62... Rc7 {[%emt 0:00:41]} (62... Nf4 $1 $19 63. Rxa7 Rh3+ 64. Kg1 Rxh4) 63. Kg3 {[%emt 0:00:05]} Re7 {[%emt 0:00:03]} 64. a4 {[%emt 0:01:28]} Kc5 {[%emt 0:00:16]} 65. g5 {[%emt 0:00:14]} hxg5 {[%emt 0:00:23]} 66. h5 {[%emt 0:00:03]} Kd5 {[%emt 0:00:11]} 67. Kg4 {[%emt 0:00:42]} Rf7 {[%emt 0:01:39]} 68. h6 {[%emt 0:00:31]} Ke5 {[%emt 0:00:09]} 69. Rc6 {[%emt 0:01:01]} Rf4+ {[%emt 0:00:38]} 70. Kg3 {[%emt 0:00:18]} Rh4 {[%emt 0:00:15]} 71. Ra6 {[%emt 0:00:12]} Rxh6 {[%emt 0:00:35]} 72. Rxa7 {[%emt 0:00:01]} Rh4 {[%emt 0:00:06]} 73. a6 {[%emt 0:00:18]} Rxa4 {[%emt 0:00:05]} 74. Ra8 {[%emt 0:00:04]} Nc7 {[%emt 0:00:48]} 75. Rg8 {[%emt 0:00:54]} Kf6 {[%emt 0:00:08]} 76. Rf8+ {[%emt 0:00:08]} Kg7 {[%emt 0:00:12]} 0-1

[Event "XVII MetLife Najdorf Open 2017"]
[Site "Warsaw"]
[Date "2017.07.17"]
[Round "9"]
[White "Winiarski, Mikolaj"]
[Black "Jaroch, Karol"]
[Result "0-1"]
[ECO "C18"]
[WhiteElo "2295"]
[BlackElo "2207"]
[Annotator "NA"]
[PlyCount "130"]
[EventDate "2017.??.??"]
[EventType "swiss"]
[EventCountry "POL"]
[SourceTitle "playchess.com"]
[Source "ChessBase"]
[SourceQuality "1"]
[TimeControl "40/5400+30:1800+30"]

1. e4 e6 2. d4 d5 3. Nc3 Bb4 4. e5 c5 5. a3 Bxc3+ 6. bxc3 Ne7 7. Nf3 Bd7 8. h4 Nbc6 9. h5 h6 10. Bd3 Qa5 11. Bd2 c4 {C18: French: 3 Nc3 Bb4: Main line: 7 h4 and 7 Qg4} 12. Be2 f6 (12... O-O-O 13. Nh4 f6 14. f4 fxe5 15. fxe5 Rhf8 16. Bg4 Rf7 17. Rf1 Rdf8 18. Rf3 Nd8 19. Ke2 {1-0 (39) Kryvoruchko,Y (2640)-Zherebukh,Y (2586) Lvov 2011}) 13. exf6 gxf6 14. Kf1 O-O-O 15. Qc1 Rh7 16. Nh2 $146 ({Predecessor:} 16. Nh4 Rg8 17. Bxh6 Qxc3 18. Rh3 Qxd4 19. Be3 Qe5 20. Bf4 Qd4 21. Be3 Qe5 {½-½ (21) Herbrechtsmeier,C (2280)-Schienmann,B (2265) Baden 1992}) 16... e5 17. Ng4 Bxg4 18. Bxg4+ Kb8 19. Rh3 Ka8 20. Rf3 exd4 21. cxd4 Qa6 22. Bc3 Rg7 (22... Rf8 $142) 23. Bh3 Ng8 24. Re3 Qb6 25. Qd1 Qc7 $16 26. g3 Rg5 27. Qf3 Qf7 28. Rae1 Rxh5 29. Be6 Qg6 30. g4 Rg5 31. Qe2 Qh7 32. f4 Rg7 33. Bxd5 Rxd5 34. Re8+ Rd8 35. d5 Rxe8 36. Qxe8+ Nb8 37. d6 b6 38. Qe6 Kb7 39. Qd5+ Nc6 40. Re4 Rxg4 41. d7 Nge7 42. d8=Q Nxd5 43. Qxd5 Qc7 44. Bd2 c3 45. Be3 Rg7 46. Rc4 Rd7 47. Qf3 Qd6 48. Rxc3 Qd1+ 49. Qxd1 Rxd1+ 50. Ke2 Ra1 51. Bf2 f5 52. Bh4 Nd4+ 53. Ke3 Nb5 54. Rd3 Rxa3 55. c4 Rxd3+ 56. Kxd3 Nd6 57. Kd4 Kc6 58. Ke5 a5 59. c5 bxc5 60. Be7 Ne8 61. Kxf5 a4 62. Bh4 a3 63. Be1 Nd6+ 64. Ke6 Ne4 65. Ke5 a2 0-1

[Event "XVII MetLife Najdorf Open 2017"]
[Site "Warsaw"]
[Date "2017.07.17"]
[Round "9"]
[White "Heinemann, Josefine"]
[Black "Priyanka, Nutakki"]
[Result "1-0"]
[ECO "B54"]
[WhiteElo "2294"]
[BlackElo "2104"]
[Annotator "NA"]
[PlyCount "65"]
[EventDate "2017.??.??"]
[EventType "swiss"]
[EventCountry "POL"]
[SourceTitle "playchess.com"]
[Source "ChessBase"]
[SourceQuality "1"]
[TimeControl "40/5400+30:1800+30"]

1. e4 c5 2. Nf3 d6 3. d4 cxd4 4. Nxd4 Nf6 5. Nc3 a6 6. Bg5 Nbd7 7. Qe2 e6 8. f4 Qc7 9. O-O-O b5 10. a3 {B96: Sicilian Najdorf: 6 Bg5 e6 7 f4, lines other than 7...Qb6 and 7...Be7} Bb7 11. g4 Be7 (11... Rc8 12. Bxf6 gxf6 13. h4 Qb6 14. Rh3 h5 15. f5 e5 16. Nb3 hxg4 17. Qxg4 b4 18. axb4 Qxb4 {1-0 (54) Kramnik,V (2808)-Gelfand,B (2743) Moscow 2016}) 12. Kb1 Rc8 13. Bh4 $146 ({Predecessor:} 13. Rg1 Nb6 14. Bxf6 gxf6 15. f5 e5 16. Nb3 h5 17. gxh5 Bf8 {½-½ (36) Gusain,H (2440)-Amonatov,F (2614) Mumbai 2016}) 13... Nb6 14. Bxf6 gxf6 15. f5 e5 16. Nb3 Rg8 17. Rg1 Nc4 18. Rg3 Qb6 19. Nd5 Bxd5 20. Rxd5 b4 21. a4 Bf8 22. a5 Qa7 23. Nd2 Nxd2+ 24. Qxd2 Qb7 25. Rb3 $18 Rxg4 26. Rxb4 Qa7 27. Rb6 Qc7 28. Bxa6 Rg1+ 29. Ka2 Ra8 30. Bb5+ Kd8 31. Rdxd6+ Bxd6 32. Rxd6+ Kc8 33. Rc6 1-0

[Event "XVII MetLife Najdorf Open 2017"]
[Site "Warsaw"]
[Date "2017.07.17"]
[Round "9"]
[White "Siekanski, Janusz"]
[Black "Deszczynski, Adam"]
[Result "1/2-1/2"]
[ECO "E42"]
[WhiteElo "2287"]
[BlackElo "2380"]
[Annotator "NA"]
[PlyCount "42"]
[EventDate "2017.??.??"]
[EventType "swiss"]
[EventCountry "POL"]
[SourceTitle "playchess.com"]
[Source "ChessBase"]
[SourceQuality "1"]
[TimeControl "40/5400+30:1800+30"]

1. d4 {[%emt 0:00:00]} Nf6 {[%emt 0:03:57]} 2. c4 {[%emt 0:00:07]} e6 {[%emt 0:00:50]} 3. Nc3 {[%emt 0:00:17]} Bb4 {[%emt 0:01:41]} 4. e3 {[%emt 0:00:11]} c5 {[%emt 0:02:33]} 5. Nge2 {[%emt 0:00:47]} cxd4 {[%emt 0:02:07]} 6. exd4 {[%emt 0:00:15]} d5 {[%emt 0:00:44]} 7. a3 {[%emt 0:01:58]} Bxc3+ {[%emt 0:07:29]} 8. Nxc3 {[%emt 0:00:10]} dxc4 {[%emt 0:00:47]} 9. Bxc4 {[%emt 0:00:05]} Nc6 {[%emt 0:00:43]} 10. Be3 {[%emt 0:00:23]} h6 {[%emt 0:01:30]} 11. d5 {[%emt 0:07:55]} exd5 {[%emt 0:00:48]} 12. Nxd5 {[%emt 0:00:23]} Be6 {[%emt 0:00:18]} 13. Nxf6+ {[%emt 0:02:31]} Qxf6 {[%emt 0:00:11]} 14. Bxe6 {[%emt 0:01:09]} Qxe6 {[%emt 0:00:08]} 15. O-O {[%emt 0:01:25]} O-O {[%emt 0:00:14]} 16. Qa4 {[%emt 0:08:13]} Rfd8 {[%emt 0:00:56]} 17. Rfd1 {[%emt 0:02:46]} a6 {[%emt 0:01:29]} 18. h3 {[%emt 0:13:30]} Rxd1+ {[%emt 0:04:10]} 19. Rxd1 {[%emt 0:00:25]} Rd8 20. Bb6 Rxd1+ 21. Qxd1 Ne7 1/2-1/2

[Event "XVII MetLife Najdorf Open 2017"]
[Site "Warsaw"]
[Date "2017.07.17"]
[Round "9"]
[White "Othman A, A. Moussa"]
[Black "Reza, Wojciech"]
[Result "1/2-1/2"]
[ECO "E05"]
[WhiteElo "2277"]
[BlackElo "2258"]
[Annotator "NA"]
[PlyCount "37"]
[EventDate "2017.??.??"]
[EventType "swiss"]
[EventCountry "POL"]
[SourceTitle "playchess.com"]
[Source "ChessBase"]
[SourceQuality "1"]
[TimeControl "40/5400+30:1800+30"]

1. d4 {[%emt 0:05:13]} Nf6 {[%emt 0:01:10]} 2. c4 {[%emt 0:00:22]} e6 {[%emt 0:00:06]} 3. g3 {[%emt 0:00:03]} d5 {[%emt 0:00:46]} 4. Bg2 {[%emt 0:00:08]} Be7 {[%emt 0:00:47]} 5. Nf3 {[%emt 0:00:15]} O-O {[%emt 0:00:06]} 6. O-O {[%emt 0:00:26]} dxc4 {[%emt 0:00:05]} 7. Qc2 {[%emt 0:04:22]} a6 {[%emt 0:00:10]} 8. a4 {[%emt 0:00:57]} Bd7 {[%emt 0:00:10]} 9. Ne5 {[%emt 0:00:58]} Bc6 {[%emt 0:00:04]} 10. Nxc6 {[%emt 0:00:38]} Nxc6 {[%emt 0:00:05]} 11. e3 {[%emt 0:01:54]} Na5 {[%emt 0:02:25]} 12. Nd2 {[%emt 0:01:22]} c5 {[%emt 0:02:15]} 13. Nxc4 {[%emt 0:04:07]} cxd4 {[%emt 0:03:35]} 14. Nxa5 {[%emt 0:02:09]} Qxa5 {[%emt 0:00:09]} 15. Bd2 {[%emt 0:01:30]} Bb4 {[%emt 0:01:51]} 16. Bxb4 {[%emt 0:01:07]} Qxb4 {[%emt 0:00:06]} 17. exd4 {[%emt 0:00:34]} Rac8 {[%emt 0:01:11]} 18. Qe2 {[%emt 0:01:23]} Rc4 {[%emt 0:08:26]} 19. Bxb7 {[%emt 0:08:49]} 1/2-1/2

[Event "XVII MetLife Najdorf Open 2017"]
[Site "Warsaw"]
[Date "2017.07.17"]
[Round "9"]
[White "Chylewski, Patryk"]
[Black "Dmochowska, Agnieszka"]
[Result "1/2-1/2"]
[ECO "D56"]
[WhiteElo "2275"]
[BlackElo "2202"]
[Annotator "NA"]
[PlyCount "48"]
[EventDate "2017.??.??"]
[EventType "swiss"]
[EventCountry "POL"]
[SourceTitle "playchess.com"]
[Source "ChessBase"]
[SourceQuality "1"]
[TimeControl "40/5400+30:1800+30"]

1. d4 {[%emt 0:00:00]} Nf6 {[%emt 0:02:47]} 2. c4 {[%emt 0:00:00]} e6 {[%emt 0:00:04]} 3. Nf3 {[%emt 0:00:00]} d5 {[%emt 0:03:16]} 4. Nc3 {[%emt 0:00:04]} Be7 {[%emt 0:00:18]} 5. Bg5 {[%emt 0:02:26]} h6 {[%emt 0:05:51]} 6. Bh4 {[%emt 0:04:26]} Ne4 {[%emt 0:02:21]} 7. Bxe7 {[%emt 0:00:31]} Qxe7 {[%emt 0:00:08]} 8. e3 {[%emt 0:00:56]} O-O {[%emt 0:01:27]} 9. Qc2 {[%emt 0:03:11]} Nxc3 {[%emt 0:00:21]} 10. Qxc3 {[%emt 0:00:46]} c6 {[%emt 0:04:24]} 11. Bd3 {[%emt 0:02:17]} b6 {[%emt 0:05:06]} 12. O-O {[%emt 0:04:32]} Bb7 {[%emt 0:01:43]} 13. cxd5 {[%emt 0:08:47]} exd5 {[%emt 0:03:27]} 14. Ne5 {[%emt 0:09:53]} c5 {[%emt 0:04:44]} 15. dxc5 {[%emt 0:05:13]} bxc5 {[%emt 0:00:42]} 16. Bb5 {[%emt 0:07:46]} Na6 {[%emt 0:14:47]} 17. Nc6 {[%emt 0:09:19]} Qe6 {[%emt 0:10:46]} 18. Na5 $11 {[%emt 0:18:19]} Qb6 {[%emt 0:03:11]} 19. Bxa6 {[%emt 0:02:52]} Bxa6 {[%emt 0:03:21]} 20. Rfc1 {[%emt 0:04:28]} Rac8 {[%emt 0:03:07]} 21. Nb3 {[%emt 0:00:39]} Bc4 {[%emt 0:02:27]} 22. Nd2 {[%emt 0:01:04]} Ba6 {[%emt 0:00:30]} 23. Nb3 {[%emt 0:00:33]} Bc4 {[%emt 0:01:39]} 24. Nd2 {[%emt 0:00:07]} Ba6 {[%emt 0:00:53]} 1/2-1/2

[Event "XVII MetLife Najdorf Open 2017"]
[Site "Warsaw"]
[Date "2017.07.17"]
[Round "9"]
[White "Pranav, Vijay"]
[Black "Paszewski, Mateusz"]
[Result "1/2-1/2"]
[ECO "A04"]
[WhiteElo "2265"]
[BlackElo "2323"]
[Annotator "NA"]
[PlyCount "81"]
[EventDate "2017.??.??"]
[EventType "swiss"]
[EventCountry "POL"]
[SourceTitle "playchess.com"]
[Source "ChessBase"]
[SourceQuality "1"]
[TimeControl "40/5400+30:1800+30"]

1. Nf3 {[%emt 0:00:00]} c5 {[%emt 0:00:09]} 2. g3 {[%emt 0:00:16]} Nc6 {[%emt 0:00:11]} 3. Bg2 {[%emt 0:00:09]} g6 {[%emt 0:00:05]} 4. O-O {[%emt 0:00:38]} Bg7 {[%emt 0:01:02]} 5. d3 {[%emt 0:00:09]} d6 {[%emt 0:00:58]} 6. e4 {[%emt 0:01:41]} e5 {[%emt 0:04:22]} 7. c3 {[%emt 0:05:27]} Nge7 {[%emt 0:00:54]} 8. Na3 {[%emt 0:04:32]} O-O {[%emt 0:04:54]} 9. Be3 {[%emt 0:04:07]} Kh8 {[%emt 0:19:12] A04: Unusual lines after 1 Nf3 and King's Indian Attack} (9... b6 10. Re1 h6 11. d4 exd4 12. cxd4 Bg4 13. Nc2 d5 14. exd5 Nxd5 15. dxc5 Bxb2 16. Bxh6 Nc3 17. Qxd8 Rfxd8 {1-0 (30) Vachier Lagrave,M (2758)-Perunovic,M (2622) Berlin 2015}) 10. d4 {[%emt 0:04:39]} exd4 {[%emt 0:07:11]} 11. cxd4 {[%emt 0:00:14]} Bg4 $146 {[%emt 0:03:49]} ({Predecessor:} 11... d5 12. exd5 Nxd5 13. Bg5 f6 14. Bc1 cxd4 15. Nxd4 f5 16. Nxc6 bxc6 17. Qc2 {1-0 (42) Umbach,A (2306)-Wirthensohn,H (2324) Switzerland 2012}) 12. dxc5 {[%emt 0:03:16]} Bxb2 {[%emt 0:09:11]} 13. Nc4 {[%emt 0:01:19]} Bxa1 {[%emt 0:03:53]} 14. Qxa1+ {[%emt 0:00:20]} f6 {[%emt 0:00:12]} 15. cxd6 {[%emt 0:00:32]} Ng8 {[%emt 0:01:00]} (15... Nc8 $16 {might work better.}) 16. Qb2 {[%emt 0:03:27]} Rb8 {[%emt 0:04:55]} 17. Bf4 {[%emt 0:08:16]} Be6 {[%emt 0:05:30]} 18. Ne3 {[%emt 0:01:03]} h6 {[%emt 0:00:19]} 19. h4 {[%emt 0:00:32]} Qd7 {[%emt 0:01:48]} 20. Rd1 {[%emt 0:02:42]} Kh7 {[%emt 0:02:42]} 21. Nd5 {[%emt 0:00:25]} Bg4 {[%emt 0:04:25]} 22. Rd3 {[%emt 0:05:10]} g5 {[%emt 0:04:56]} 23. hxg5 {[%emt 0:00:18]} hxg5 {[%emt 0:00:05] [#]} 24. Nxf6+ $18 {[%emt 0:02:26]} Nxf6 {[%emt 0:09:45]} 25. Nxg5+ {[%emt 0:00:02]} Kg6 {[%emt 0:01:05]} 26. e5 {[%emt 0:00:57]} Rbe8 {[%emt 0:02:16]} 27. Re3 {[%emt 0:01:21]} Nh5 {[%emt 0:03:37]} 28. Be4+ {[%emt 0:01:07]} Bf5 {[%emt 0:00:19]} 29. e6 {[%emt 0:01:04]} Qg7 {[%emt 0:00:03]} 30. Bxf5+ {[%emt 0:00:52]} Rxf5 {[%emt 0:00:59]} 31. d7 {[%emt 0:00:08]} Rg8 {[%emt 0:02:39]} 32. Qxb7 {[%emt 0:05:13]} Nxf4 {[%emt 0:01:02]} 33. gxf4 {[%emt 0:00:25]} Rxg5+ {[%emt 0:02:31]} 34. fxg5 {[%emt 0:00:26]} Qa1+ {[%emt 0:00:01]} 35. Kg2 {[%emt 0:00:41]} Rh8 {[%emt 0:00:01]} 36. Rh3 {[%emt 0:00:54]} Rxh3 {[%emt 0:00:01]} 37. Kxh3 {[%emt 0:00:01]} Qh1+ {[%emt 0:00:09]} 38. Kg3 {[%emt 0:00:03]} Qg1+ {[%emt 0:00:07]} 39. Kh3 {[%emt 0:00:02]} Qh1+ {[%emt 0:00:39]} 40. Kg3 {[%emt 0:00:00]} Qg1+ {[%emt 0:00:11]} 41. Kh3 {[%emt 0:00:38]} 1/2-1/2